Workbook

Sheet EX 1
A1: Discount rate | B1: 0.08
A3: NPV | B3: =NPV(B1,B8:B17)+B7 -> 71.00813989 | C3: =getformula(B3) -> <-- =NPV(B1,B8:B17)+B7
A4: IRR | B4: =IRR(B7:B17) -> 0.105579816 | C4: =getformula(B4) -> <-- =IRR(B7:B17)
G5: =B3 -> 71.00813989 | H5: =getformula(G5) -> <-- =B3
A6: Year | B6: CF | F6: 0 | G6: 400
A7: 0 | B7: -600 | F7: =F6+2% -> 0.02 | G7: 298.2585006
A8: 1 | B8: 100 | F8: =F7+2% -> 0.04 | G8: 211.0895779
A9: 2 | B9: 100 | F9: 0.06 | G9: 136.0087051
A10: 3 | B10: 100 | F10: 0.08 | G10: 71.00813989
A11: 4 | B11: 100 | F11: 0.1 | G11: 14.45671057
A12: 5 | B12: 100 | F12: 0.12 | G12: -34.97769716
A13: 6 | B13: 100 | F13: 0.14 | G13: -78.38843537
A14: 7 | B14: 100 | F14: =F13+2% -> 0.16 | G14: -116.6772522
A15: 8 | B15: 100 | F15: 0.18 | G15: -150.5913705
A16: 9 | B16: 100 | F16: 0.2 | G16: -180.7527914
A17: 10 | B17: 100

Sheet EX 2
A2: Loan | B2: 10000
A3: Interest | B3: 0.15 | E3: =getformula(C8) -> <-- =B2
A4: N | B4: 5 | G4: =getformula(E8) -> <-- =C8*$B$3
A5: PMT | B5: =PMT(B3,B4,-B2) -> 2983.155525 | C5: =getformula(B5) -> <-- =PMT(B3,B4,-B2) | F5: =getformula(D8) -> <-- =$B$5
B7: Year | C7: Principle at beg of year | D7: PMT | E7: Interest | F7: Principle
B8: 1 | C8: =B2 -> 10000 | D8: =$B$5 -> 2983.155525 | E8: =C8*$B$3 -> 1500 | F8: =D8-E8 -> 1483.155525 | G8: =getformula(F8) -> <-- =D8-E8
B9: 2 | C9: =C8-F8 -> 8516.844475 | D9: =$B$5 -> 2983.155525 | E9: =C9*$B$3 -> 1277.526671 | F9: =D9-E9 -> 1705.628853
B10: 3 | C10: =C9-F9 -> 6811.215622 | D10: 2983.155525 | E10: 1021.682343 | F10: 1961.473181
B11: 4 | C11: 4849.742441 | D11: 2983.155525 | E11: 727.4613661 | F11: 2255.694158
B12: 5 | C12: 2594.048282 | D12: 2983.155525 | E12: 389.1072423 | F12: 2594.048282
B13: 6 | C13: 0

Sheet EX 3
A2: Discount rate | B2: 0.15
A3: Initial investment | B3: 1000
A4: N | B4: 11
A5: Growth rate in CF | B5: 0.1
A6: NPV | B6: =NPV(B2,C11:C21)+C10 -> 0 | C6: =getformula(B6) -> <-- =NPV(B2,C11:C21)+C10
B9: Year | C9: CF
B10: 0 | C10: =-B3 -> -1000
B11: 1 | C11: 129.2851898
B12: 2 | C12: =C11*(1+$B$5) -> 142.2137088 | D12: =getformula(C12) -> <-- =C11*(1+$B$5)
B13: 3 | C13: =C12*(1+$B$5) -> 156.4350797
B14: 4 | C14: 172.0785876
B15: 5 | C15: 189.2864464
B16: 6 | C16: 208.215091
B17: 7 | C17: 229.0366001
B18: 8 | C18: 251.9402602
B19: 9 | C19: 277.1342862
B20: 10 | C20: 304.8477148
B21: 11 | C21: 335.3324863

Sheet EX 4
A1: Discount rate | B1: 0.2
A2: NPV | B2: =NPV(B1,B6:B10)+B5 -> 76.51748971 | C2: =getformula(B2) -> <-- =NPV(B1,B6:B10)+B5
G3: =B2 -> 76.51748971 | H3: =getformula(G3) -> <-- =B2
A4: Year | B4: CF | F4: 0 | G4: -100
A5: 0 | B5: -500 | F5: 0.04 | G5: -29.97742012
A6: 1 | B6: 600 | F6: 0.08 | G6: 17.32964748
A7: 2 | B7: 300 | F7: 0.12 | G7: 48.08328329
A8: 3 | B8: 300 | F8: 0.16 | G8: 66.73275593
A9: 4 | B9: 200 | F9: 0.2 | G9: 76.51748971
A10: 5 | B10: -1000 | F10: 0.24 | G10: 79.81338671
F11: 0.28 | G11: 78.37411761
A12: IRR1 | B12: =IRR(B5:B10) -> 0.06338786646 | C12: =getformula(B12) -> <-- =IRR(B5:B10) | F12: 0.32 | G12: 73.50107612
A13: IRR2 | B13: =IRR(B5:B10,100) -> 0.6019560765 | C13: =getformula(B13) -> <-- =IRR(B5:B10,100) | F13: 0.36 | G13: 66.16429947
F14: 0.4 | G14: 57.08930803
F15: 0.44 | G15: 46.82001058
F16: 0.48 | G16: 35.76463772
F17: 0.52 | G17: 24.22953151
F18: 0.56 | G18: 12.44417254
F19: 0.6 | G19: 0.5798339844
F20: 0.64 | G20: -11.23643352
F21: 0.68 | G21: -22.91126156
F22: 0.72 | G22: -34.37698133
F23: 0.76 | G23: -45.58555136
F24: 0.8 | G24: -56.50392047
F25: 0.84 | G25: -67.11047426
F26: 0.88 | G26: -77.39230399
F27: 0.92 | G27: -87.34310213
F28: 0.96 | G28: -96.96153768
F29: 1 | G29: -106.25

Sheet EX 5
A1: IRR? | B1: 0.05068420259
H2: =getformula(F5) -> <-- =F4-I4 | J2: =getformula(H4) -> <-- =F4*$B$1
E3: Year | F3: Principle at beg of year | G3: PMT | H3: Interest | I3: Principle
A4: Year | B4: CF | E4: 1 | F4: =-B5 -> 800 | G4: =B6 -> 300 | H4: =F4*$B$1 -> 40.54736207 | I4: =G4-H4 -> 259.4526379 | J4: =getformula(I4) -> <-- =G4-H4
A5: 0 | B5: -800 | E5: 2 | F5: =F4-I4 -> 540.5473621 | G5: =B7 -> 200 | H5: =F5*$B$1 -> 27.39721201 | I5: =G5-H5 -> 172.602788
A6: 1 | B6: 300 | E6: 3 | F6: =F5-I5 -> 367.9445741 | G6: =B8 -> 150 | H6: 18.64897734 | I6: 131.3510227
A7: 2 | B7: 200 | E7: 4 | F7: 236.5935514 | G7: 122 | H7: 11.99155549 | I7: 110.0084445
A8: 3 | B8: 150 | E8: 5 | F8: 126.5851069 | G8: 133 | H8: 6.415865204 | I8: 126.5841348
A9: 4 | B9: 122 | E9: 6 | F9: 0.0009721174374
A10: 5 | B10: 133
A12: IRR | B12: =IRR(B5:B10) -> 0.0506837947 | C12: =getformula(B12) -> <-- =IRR(B5:B10)

Sheet EX 7
A2: Loan pronciple | B2: 100000
A3: N | B3: 5
A4: Interest | B4: 0.13
A5: Annual PMT | B5: =PMT(B4,B3,-B2) -> 28431.45434 | C5: =getformula(B5) -> <-- =PMT(B4,B3,-B2)

Sheet EX 8
A1: Loan Principle | B1: 15000
A2: Interest: | H2: =getformula(G5) -> <-- =G4-J4 | J2: =getformula(I4) -> <-- =G4*$B$4
A3: annual | B3: 0.15 | F3: Month | G3: Principle at beg of month | H3: PMT | I3: Interest | J3: Principle
A4: monthly | B4: =B3/12 -> 0.0125 | C4: =getformula(B4) -> <-- =B3/12 | F4: 1 | G4: =B1 -> 15000 | H4: =$B$8 -> 417.461224 | I4: =G4*$B$4 -> 187.5 | J4: =H4-I4 -> 229.961224 | K4: =getformula(J4) -> <-- =H4-I4
F5: 2 | G5: =G4-J4 -> 14770.03878 | H5: =$B$8 -> 417.461224 | I5: =G5*$B$4 -> 184.6254847 | J5: =H5-I5 -> 232.8357393
A6: N | B6: 48 | C6: months | F6: 3 | G6: =G5-J5 -> 14537.20304 | H6: 417.461224 | I6: 181.715038 | J6: 235.746186
F7: 4 | G7: 14301.45685 | H7: 417.461224 | I7: 178.7682106 | J7: 238.6930134
A8: monthly PMT | B8: =PMT(B4,B6,-B1) -> 417.461224 | C8: =getformula(B8) -> <-- =PMT(B4,B6,-B1) | F8: 5 | G8: 14062.76384 | H8: 417.461224 | I8: 175.784548 | J8: 241.676676
F9: 6 | G9: 13821.08716 | H9: 417.461224 | I9: 172.7635895 | J9: 244.6976345
F10: 7 | G10: 13576.38953 | H10: 417.461224 | I10: 169.7048691 | J10: 247.7563549
F11: 8 | G11: 13328.63317 | H11: 417.461224 | I11: 166.6079146 | J11: 250.8533093
F12: 9 | G12: 13077.77986 | H12: 417.461224 | I12: 163.4722483 | J12: 253.9889757
F13: 10 | G13: 12823.79089 | H13: 417.461224 | I13: 160.2973861 | J13: 257.1638379
F14: 11 | G14: 12566.62705 | H14: 417.461224 | I14: 157.0828381 | J14: 260.3783859
F15: 12 | G15: 12306.24866 | H15: 417.461224 | I15: 153.8281083 | J15: 263.6331157
F16: 13 | G16: 12042.61555 | H16: 417.461224 | I16: 150.5326943 | J16: 266.9285297
F17: 14 | G17: 11775.68702 | H17: 417.461224 | I17: 147.1960877 | J17: 270.2651363
F18: 15 | G18: 11505.42188 | H18: 417.461224 | I18: 143.8177735 | J18: 273.6434505
F19: 16 | G19: 11231.77843 | H19: 417.461224 | I19: 140.3972304 | J19: 277.0639936
F20: 17 | G20: 10954.71444 | H20: 417.461224 | I20: 136.9339305 | J20: 280.5272935
F21: 18 | G21: 10674.18714 | H21: 417.461224 | I21: 133.4273393 | J21: 284.0338847
F22: 19 | G22: 10390.15326 | H22: 417.461224 | I22: 129.8769157 | J22: 287.5843083
F23: 20 | G23: 10102.56895 | H23: 417.461224 | I23: 126.2821119 | J23: 291.1791121
F24: 21 | G24: 9811.389839 | H24: 417.461224 | I24: 122.642373 | J24: 294.818851
F25: 22 | G25: 9516.570988 | H25: 417.461224 | I25: 118.9571373 | J25: 298.5040867
F26: 23 | G26: 9218.066901 | H26: 417.461224 | I26: 115.2258363 | J26: 302.2353877
F27: 24 | G27: 8915.831513 | H27: 417.461224 | I27: 111.4478939 | J27: 306.0133301
F28: 25 | G28: 8609.818183 | H28: 417.461224 | I28: 107.6227273 | J28: 309.8384967
F29: 26 | G29: 8299.979686 | H29: 417.461224 | I29: 103.7497461 | J29: 313.7114779
F30: 27 | G30: 7986.268209 | H30: 417.461224 | I30: 99.82835261 | J30: 317.6328714
F31: 28 | G31: 7668.635337 | H31: 417.461224 | I31: 95.85794171 | J31: 321.6032823
F32: 29 | G32: 7347.032055 | H32: 417.461224 | I32: 91.83790069 | J32: 325.6233233
F33: 30 | G33: 7021.408732 | H33: 417.461224 | I33: 87.76760914 | J33: 329.6936149
F34: 31 | G34: 6691.715117 | H34: 417.461224 | I34: 83.64643896 | J34: 333.814785
F35: 32 | G35: 6357.900332 | H35: 417.461224 | I35: 79.47375415 | J35: 337.9874699
F36: 33 | G36: 6019.912862 | H36: 417.461224 | I36: 75.24891077 | J36: 342.2123132
F37: 34 | G37: 5677.700549 | H37: 417.461224 | I37: 70.97125686 | J37: 346.4899671
F38: 35 | G38: 5331.210581 | H38: 417.461224 | I38: 66.64013227 | J38: 350.8210917
F39: 36 | G39: 4980.38949 | H39: 417.461224 | I39: 62.25486862 | J39: 355.2063554
F40: 37 | G40: 4625.183134 | H40: 417.461224 | I40: 57.81478918 | J40: 359.6464348
F41: 38 | G41: 4265.5367 | H41: 417.461224 | I41: 53.31920874 | J41: 364.1420153
F42: 39 | G42: 3901.394684 | H42: 417.461224 | I42: 48.76743355 | J42: 368.6937904
F43: 40 | G43: 3532.700894 | H43: 417.461224 | I43: 44.15876117 | J43: 373.3024628
F44: 41 | G44: 3159.398431 | H44: 417.461224 | I44: 39.49248039 | J44: 377.9687436
F45: 42 | G45: 2781.429687 | H45: 417.461224 | I45: 34.76787109 | J45: 382.6933529
F46: 43 | G46: 2398.736335 | H46: 417.461224 | I46: 29.98420418 | J46: 387.4770198
F47: 44 | G47: 2011.259315 | H47: 417.461224 | I47: 25.14074143 | J47: 392.3204826
F48: 45 | G48: 1618.938832 | H48: 417.461224 | I48: 20.2367354 | J48: 397.2244886
F49: 46 | G49: 1221.714344 | H49: 417.461224 | I49: 15.27142929 | J49: 402.1897947
F50: 47 | G50: 819.5245489 | H50: 417.461224 | I50: 10.24405686 | J50: 407.2171671
F51: 48 | G51: 412.3073817 | H51: 417.461224 | I51: 5.153842272 | J51: 412.3073817
F52: 49 | G52: -1.250555215e-12

Sheet EX 9
A1: A:
A2: Cost of the car | B2: 30000
A4: B:
A5: down payment | B5: 5000
A6: monthly PMT | B6: 1050
A7: N | B7: 30 | C7: months
A9: Discount rate | B9: 0.0125 | C9: monthly
B10: =B9*12 -> 0.15 | C10: annually | D10: =getformula(B10) -> <-- =B9*12
A12: NPV option B | B12: =PV(B9,B7,-B6)+B5 -> 31133.35154 | C12: =getformula(B12) -> <-- =PV(B9,B7,-B6)+B5
A14: EAR | B14: =(1+B9)^12-1 -> 0.1607545177 | C14: =getformula(B14) -> <-- =(1+B9)^12-1

Sheet EX 10
A2: Annual PMT | B2: 15000
A3: Interest rate | B3: 0.1
A4: N | B4: 5 | C4: years
A5: FV | B5: =FV(B3,B4,-B2) -> 91576.5 | C5: =getformula(B5) -> <-- =FV(B3,B4,-B2)
F6: =getformula(D9) -> <-- =D8+E8+F8
C7: Year | D7: Accumilation at beg of year | E7: PMT | F7: Annual interest
C8: 1 | D8: 0 | E8: =$B$2 -> 15000 | F8: =D8*$B$3 -> 0 | G8: =getformula(F8) -> <-- =D8*$B$3
C9: 2 | D9: =D8+E8+F8 -> 15000 | E9: =$B$2 -> 15000 | F9: =D9*$B$3 -> 1500
C10: 3 | D10: =D9+E9+F9 -> 31500 | E10: 15000 | F10: 3150
C11: 4 | D11: 49650 | E11: 15000 | F11: 4965
C12: 5 | D12: 69615 | E12: 15000 | F12: 6961.5
C13: 6 | D13: 91576.5

Sheet EX 11
A2: Annual PMT | B2: 15000
A3: Interest rate | B3: 0.1
A4: N | B4: 5 | C4: years
A5: FV | B5: =FV(B3,B4,-B2,,1) -> 100734.15 | C5: =getformula(B5) -> <-- =FV(B3,B4,-B2,,1)
F6: =getformula(D9) -> <-- =D8+E8+F8
C7: Year | D7: Accumilation at beg of year | E7: PMT at beg of year | F7: Annual interest
C8: 1 | D8: 0 | E8: =$B$2 -> 15000 | F8: =(D8+E8)*$B$3 -> 1500 | G8: =getformula(F8) -> <-- =(D8+E8)*$B$3
C9: 2 | D9: =D8+E8+F8 -> 16500 | E9: =$B$2 -> 15000 | F9: =(D9+E9)*$B$3 -> 3150
C10: 3 | D10: =D9+E9+F9 -> 34650 | E10: 15000 | F10: 4965
C11: 4 | D11: 54615 | E11: 15000 | F11: 6961.5
C12: 5 | D12: 76576.5 | E12: 15000 | F12: 9157.65
C13: 6 | D13: 100734.15

Sheet EX 12
A1: Monthly PMT | B1: 250
A2: Number of months | B2: 120
A4: Effective monthly return? | B4: 0.0151448672
A5: Accumilation | B5: =FV(B4,B2,-B1,,1) -> 85000 | C5: =getformula(B5) -> <-- =FV(B4,B2,-B1,,1)
A8: Annual return | B8: =B4*12 -> 0.1817384063 | C8: =getformula(B8) -> <-- =B4*12

Sheet EX 13
A1: Interest rate | B1: 0.1
A2: Number of payments | B2: 30
A3: number of withdrawals | B3: 20
A4: Annual withdrawal | B4: 100000 | F4: Year | G4: Age | H4: Total at beg of year | I4: PMT at beg of year | J4: Withdrawal at beg of year | K4: Total at end of year
F5: 0 | G5: 35 | H5: 0 | I5: =$B$6 -> 5175.606737 | J5: 0 | K5: =(H5+I5-J5)*(1+$B$1) -> 5693.16741 | L5: =getformula(K5) -> <-- =(H5+I5-J5)*(1+$B$1)
A6: Annual Payment? | B6: =PMT(B1,B2,,-B8,1) -> 5175.606737 | C6: =getformula(B6) -> <-- =PMT(B1,B2,,-B8,1) | F6: 1 | G6: =G5+1 -> 36 | H6: =K5 -> 5693.16741 | I6: =$B$6 -> 5175.606737 | J6: 0 | K6: =(H6+I6-J6)*(1+$B$1) -> 11955.65156
F7: 2 | G7: =G6+1 -> 37 | H7: =K6 -> 11955.65156 | I7: =$B$6 -> 5175.606737 | J7: 0 | K7: 18844.38413
A8: PV of withdrawals (at age 65) | B8: =PV(B1,B3,-B4,,1) -> 936492.0092 | C8: =getformula(B8) -> <-- =PV(B1,B3,-B4,,1) | F8: 3 | G8: 38 | H8: 18844.38413 | I8: 5175.606737 | J8: 0 | K8: 26421.98995
F9: 4 | G9: 39 | H9: 26421.98995 | I9: 5175.606737 | J9: 0 | K9: 34757.35636
F10: 5 | G10: 40 | H10: 34757.35636 | I10: 5175.606737 | J10: 0 | K10: 43926.2594
A11: Annual PMT (one step) | B11: =PMT(B1,B2,,-PV(B1,B3,-B4,,1),1) -> 5175.606737 | C11: =getformula(B11) -> <-- =PMT(B1,B2,,-PV(B1,B3,-B4,,1),1) | F11: 6 | G11: 41 | H11: 43926.2594 | I11: 5175.606737 | J11: 0 | K11: 54012.05275
F12: 7 | G12: 42 | H12: 54012.05275 | I12: 5175.606737 | J12: 0 | K12: 65106.42544
F13: 8 | G13: 43 | H13: 65106.42544 | I13: 5175.606737 | J13: 0 | K13: 77310.23539
F14: 9 | G14: 44 | H14: 77310.23539 | I14: 5175.606737 | J14: 0 | K14: 90734.42634
F15: 10 | G15: 45 | H15: 90734.42634 | I15: 5175.606737 | J15: 0 | K15: 105501.0364
F16: 11 | G16: 46 | H16: 105501.0364 | I16: 5175.606737 | J16: 0 | K16: 121744.3074
F17: 12 | G17: 47 | H17: 121744.3074 | I17: 5175.606737 | J17: 0 | K17: 139611.9056
F18: 13 | G18: 48 | H18: 139611.9056 | I18: 5175.606737 | J18: 0 | K18: 159266.2636
F19: 14 | G19: 49 | H19: 159266.2636 | I19: 5175.606737 | J19: 0 | K19: 180886.0573
F20: 15 | G20: 50 | H20: 180886.0573 | I20: 5175.606737 | J20: 0 | K20: 204667.8305
F21: 16 | G21: 51 | H21: 204667.8305 | I21: 5175.606737 | J21: 0 | K21: 230827.7809
F22: 17 | G22: 52 | H22: 230827.7809 | I22: 5175.606737 | J22: 0 | K22: 259603.7264
F23: 18 | G23: 53 | H23: 259603.7264 | I23: 5175.606737 | J23: 0 | K23: 291257.2665
F24: 19 | G24: 54 | H24: 291257.2665 | I24: 5175.606737 | J24: 0 | K24: 326076.1605
F25: 20 | G25: 55 | H25: 326076.1605 | I25: 5175.606737 | J25: 0 | K25: 364376.944
F26: 21 | G26: 56 | H26: 364376.944 | I26: 5175.606737 | J26: 0 | K26: 406507.8058
F27: 22 | G27: 57 | H27: 406507.8058 | I27: 5175.606737 | J27: 0 | K27: 452851.7538
F28: 23 | G28: 58 | H28: 452851.7538 | I28: 5175.606737 | J28: 0 | K28: 503830.0966
F29: 24 | G29: 59 | H29: 503830.0966 | I29: 5175.606737 | J29: 0 | K29: 559906.2737
F30: 25 | G30: 60 | H30: 559906.2737 | I30: 5175.606737 | J30: 0 | K30: 621590.0685
F31: 26 | G31: 61 | H31: 621590.0685 | I31: 5175.606737 | J31: 0 | K31: 689442.2427
F32: 27 | G32: 62 | H32: 689442.2427 | I32: 5175.606737 | J32: 0 | K32: 764079.6344
F33: 28 | G33: 63 | H33: 764079.6344 | I33: 5175.606737 | J33: 0 | K33: 846180.7652
F34: 29 | G34: 64 | H34: 846180.7652 | I34: 5175.606737 | J34: 0 | K34: 936492.0092
F35: 30 | G35: 65 | H35: 936492.0092 | I35: 0 | J35: =$B$4 -> 100000 | K35: 920141.2101
F36: 31 | G36: 66 | H36: 920141.2101 | I36: 0 | J36: =$B$4 -> 100000 | K36: 902155.3311
F37: 32 | G37: 67 | H37: 902155.3311 | I37: 0 | J37: =$B$4 -> 100000 | K37: 882370.8642
F38: 33 | G38: 68 | H38: 882370.8642 | I38: 0 | J38: 100000 | K38: 860607.9506
F39: 34 | G39: 69 | H39: 860607.9506 | I39: 0 | J39: 100000 | K39: 836668.7457
F40: 35 | G40: 70 | H40: 836668.7457 | I40: 0 | J40: 100000 | K40: 810335.6203
F41: 36 | G41: 71 | H41: 810335.6203 | I41: 0 | J41: 100000 | K41: 781369.1823
F42: 37 | G42: 72 | H42: 781369.1823 | I42: 0 | J42: 100000 | K42: 749506.1005
F43: 38 | G43: 73 | H43: 749506.1005 | I43: 0 | J43: 100000 | K43: 714456.7106
F44: 39 | G44: 74 | H44: 714456.7106 | I44: 0 | J44: 100000 | K44: 675902.3816
F45: 40 | G45: 75 | H45: 675902.3816 | I45: 0 | J45: 100000 | K45: 633492.6198
F46: 41 | G46: 76 | H46: 633492.6198 | I46: 0 | J46: 100000 | K46: 586841.8818
F47: 42 | G47: 77 | H47: 586841.8818 | I47: 0 | J47: 100000 | K47: 535526.0699
F48: 43 | G48: 78 | H48: 535526.0699 | I48: 0 | J48: 100000 | K48: 479078.6769
F49: 44 | G49: 79 | H49: 479078.6769 | I49: 0 | J49: 100000 | K49: 416986.5446
F50: 45 | G50: 80 | H50: 416986.5446 | I50: 0 | J50: 100000 | K50: 348685.1991
F51: 46 | G51: 81 | H51: 348685.1991 | I51: 0 | J51: 100000 | K51: 273553.719
F52: 47 | G52: 82 | H52: 273553.719 | I52: 0 | J52: 100000 | K52: 190909.0909
F53: 48 | G53: 83 | H53: 190909.0909 | I53: 0 | J53: 100000 | K53: 100000
F54: 49 | G54: 84 | H54: 100000 | I54: 0 | J54: 100000 | K54: 1.198932296e-08
F55: 50 | G55: 85 | H55: 1.198932296e-08

Sheet EX 15
C1: Discount rate | D1: =B11 -> 0.100364536
A2: Date | B2: CF
A3: 2007-06-30 | B3: -899
A4: 2008-02-14 | B4: 70
A5: =DATE(YEAR(A4)+1,MONTH(A4),DAY(A4)) -> 2009-02-14 | B5: 70
A6: =DATE(YEAR(A5)+1,MONTH(A5),DAY(A5)) -> 2010-02-14 | B6: 70
A7: 2011-02-14 | B7: 70
A8: =DATE(YEAR(A7)+1,MONTH(A7),DAY(A7)) -> 2012-02-14 | B8: 70
A9: 2013-02-14 | B9: 1070
A11: IRR | B11: =XIRR(B3:B9,A3:A9) -> 0.100364536 | C11: =getformula(B11) -> <-- =XIRR(B3:B9,A3:A9)
A12: NPV | B12: =XNPV(D1,B3:B9,A3:A9) -> -1.486341102e-05 | C12: =getformula(B12) -> <-- =XNPV(D1,B3:B9,A3:A9)
